Cogmind - Beta 16 @@@ ROGUE MODE // 2025.11.05 @ 20:40:12 Player: Lazz Result: Destroyed by Y-45 Defender with Heavy Assault Rifle Performance ------------- Evolutions (2) 1000 Regions Visited (4) 800 Robots Destroyed (42) 210 Value Destroyed (1260) 1260 Prototype IDs (2) 40 Alien Tech Used (0) 0 Bonus (0) 0 TOTAL SCORE: 3310 Bonus ------- None Cogmind --------- Core Integrity 0/550 Matter 141/300 Energy 235/250 System Corruption 11% Temperature Cool (27) Movement Core (450) Ox8 Location -8/Materials Parts ------- > --- POWER (1) -------- Ion Engine > --- PROPULSION (3) --- (None) > --- UTILITY (4) ------ Large Storage Unit Hacking Suite Hacking Suite > --- WEAPON (3) ------- (None) > --- INVENTORY (15) --- Light Ion Engine High-capacity Storage Unit Improved Weapon Shielding Scythe Peak State ------------ > --- POWER ------------ Light Ion Engine > --- PROPULSION ------- Aluminum Leg Aluminum Leg Aluminum Leg > --- UTILITY ---------- Large Storage Unit Improved Targeting Computer Hacking Suite > --- WEAPON ----------- Shock Rifle Beam Rifle Light Assault Rifle > --- INVENTORY -------- Ion Engine Light Ion Engine Light Treads Light Treads Improved Treads High-capacity Storage Unit Hacking Suite Hacking Suite Advanced Assault Cannon Mini Grenade Launcher Mini Grenade Launcher [Rating: 18] Favorites ----------- Power Ion Engine Engine Ion Engine Power Core Light Nuclear Core Propulsion Aluminum Leg Treads Light Treads Leg Aluminum Leg Utility Large Storage Unit Device Tractor Beam Storage Large Storage Unit Processor Improved Targeting Computer Hackware Hacking Suite Protection Light Armor Plating Weapon Light Assault Rifle Energy Gun Beam Rifle Energy Cannon Light EM Pulse Cannon Ballistic Gun Light Assault Rifle Ballistic Cannon Advanced Assault Cannon Launcher Mini Grenade Launcher Special Weapon Plasma Cutter Impact Weapon Heavy Mace Build | -11 -10 -9 -9 -8 ------- Run | Yrd Mat Mat Min Mat Slots Evolved 4 | . . 2 . 2 Power . | . . . . . Propulsion 1 | . . 1 . . Utility 2 | . . . . 2 Weapon 1 | . . 1 . . Parts Attached 47 | 8 6 5 5 23 Power 6 | 1 1 1 . 3 Engine 5 | 1 . 1 . 3 Core 1 | . 1 . . . Reactor . | . . . . . Propulsion 12 | 2 3 1 3 3 Treads 6 | . . . 3 3 Leg 6 | 2 3 1 . . Wheel . | . . . . . Hover . | . . . . . Flight . | . . . . . Utility 9 | 2 1 . . 6 Device 2 | 1 . . . 1 Storage 2 | 1 1 . . . Processor 1 | . . . . 1 Hackware 3 | . . . . 3 Protection 1 | . . . . 1 Artifact . | . . . . . Weapon 20 | 3 1 3 2 11 Energy Gun 5 | . . . . 5 Energy Cannon 1 | . . . . 1 Ballistic Gun 4 | 3 . . . 1 Ballistic Cannon 1 | . . . . 1 Launcher 4 | . . . 2 2 Special Weapon 4 | . 1 3 . . Impact Weapon 1 | . . . . 1 Slashing Weapon . | . . . . . Piercing Weapon . | . . . . . Special Melee Weapon . | . . . . . Unidentified Prototypes . | . . . . . Corrupted Parts 2 | . . . . 2 System Corruption 11 | . . . . 11 Parts Lost 38 | . 7 . 5 26 Power 4 | . 2 . . 2 Propulsion 10 | . 1 . 1 8 Utility 5 | . 1 . . 4 Weapon 19 | . 3 . 4 12 Highest Loss Streak 7 | . 4 . 5 7 To Critical Strikes . | . . . . . Average Backups 7 | 2 8 7 9 7 Power 1 | . 1 1 1 1 Propulsion 3 | 1 4 3 4 2 Utility 1 | . 1 2 2 1 Weapon 1 | . . . 1 1 Tool/Special . | . . . . . Unused Backups 5 | . 1 . . 4 Power 1 | . . . . 1 Propulsion . | . . . . . Utility 3 | . 1 . . 2 Weapon 1 | . . . . 1 Tool/Special . | . . . . . Average Slot Usage (%) 72 | . 89 75 67 64 Engine 4 | . 7 11 4 3 Core 1 | . 5 . . . Treads 8 | . . . 25 6 Leg 13 | . 27 29 1 9 Device 2 | . 7 . . 1 Storage 10 | . 14 11 11 9 Processor 2 | . . . . 5 Hackware 5 | . . . . 10 Energy Gun 4 | . . . . 8 Ballistic Gun 9 | . 21 1 6 4 Launcher 2 | . . . 6 1 Special Weapon 4 | . 4 22 12 . Impact Weapon 1 | . . . . 2 Peak Build Rating 18 | 7 9 11 12 18 Average Rating 10 | 5 7 9 8 14 On Entrance 5 | . 7 4 11 7 Avg Prop Armor Cover (%) 14 | . . . . 14 Naked Turns . | . . . . . Heaviest Build 32 | 15 30 28 28 32 Greatest Support 60 | 20 20 30 60 60 Greatest Overweight (x) 10 | 2 2 . . 10 Average Overweight (x) . | . . . . 1 Largest Inventory Capacity 15 | 8 15 15 15 15 Average Capacity 14 | 7 14 15 15 15 Most Carried 12 | 4 11 10 11 12 Average Carried 7 | 2 8 7 9 7 Final Capacity 15 | 8 15 15 15 15 Final Carried 11 | 4 11 7 9 4 Class Distribution -------------------- 57% | Mutant 28% | Gunner 14% | Hacker-Mutant Dominant Class ---------------- Mutant | -10/Materials Gunner | -9/Materials Mutant | -9/Mines Gunner | -8/Materials Resources | -11 -10 -9 -9 -8 ----------- Run | Yrd Mat Mat Min Mat Matter Collected 961 | 288 230 . 115 328 Remotely 197 | 53 144 . . . Salvage Created 1259 | 53 424 . 82 700 Parts 82 | 2 35 . 3 42 Haulers Intercepted 1 | . 1 . . . Recyclers Shooed . | . . . . . Parts Field Recycled . | . . . . . Retrieved Matter . | . . . . . Parts Self-Destructed . | . . . . . Prevented . | . . . . . Parts Restored . | . . . . . Kills | -11 -10 -9 -9 -8 ------- Run | Yrd Mat Mat Min Mat Combat Hostiles Destroyed 29 | . 9 . 3 17 Melee 1 | . . . . 1 Guns 16 | . 7 . 1 8 Cannons 3 | . 2 . . 1 AOE 7 | . . . 2 5 Classes Destroyed 9 | 1 4 . 1 3 Worker 4 | . 2 . . 2 Builder 3 | . . . . 3 Hauler 1 | . 1 . . . Recycler 1 | 1 . . . . Watcher 4 | . 1 . . 3 Swarmer 4 | . . . . 4 Grunt 18 | . 9 . 2 7 Duelist 1 | . . . 1 . Sentry 6 | . . . . 6 Best Kill Streak 7 | 1 5 . 3 7 Combat Bots Only 5 | . 5 . 3 3 Max Kills in Single Turn 4 | 1 2 . 2 4 Gunslinging . | . . . . . Exploded 1 | . . . 1 1 Melee 1 | . . . . 1 Uniques/NPCs Destroyed . | . . . . . Combat | -11 -10 -9 -9 -8 -------- Run | Yrd Mat Mat Min Mat Hostile Shots Fired 323 | . 72 . 36 215 Missed 88 | . 12 . 8 68 Hits 235 | . 60 . 28 147 Melee 11 | . . . 11 . Projectile 224 | . 60 . 17 147 Critical Strikes 9 | . . . 2 7 Damage Taken 3918 | . 832 . 682 2404 Core 811 | . 198 . 54 559 Absorbed by Shields . | . . . . . Core Remaining (%) 68 | 100 20 . 86 . Volleys Fired 114 | 3 48 . 7 56 Largest 3 | 2 2 . 3 3 Hottest 171 | 40 120 . 70 171 Shots Fired 208 | 6 81 . 17 104 Gun 157 | 6 77 . 2 72 Cannon 22 | . . . . 22 Launcher 12 | . . . 2 10 Special 17 | . 4 . 13 . Kinetic 115 | 6 77 . 2 30 Thermal 59 | . 4 . 13 42 Explosive 12 | . . . 2 10 Electromagnetic 22 | . . . . 22 Robot Hit Streak 12 | 1 7 . 5 12 Robot Miss Streak 4 | 1 4 . 3 2 Penetration Max . | . . . . . Secondary Targets 3 | . 3 . . . Max Gunslinging Chain 1 | . 1 . . . Shots Hit Robots 155 | 3 50 . 11 91 Core Hits 69 | 2 23 . 6 38 Critical Kills 1 | . 1 . . . Critical Parts Destroyed 1 | . . . . 1 Critical Strikes 7 | . 1 . . 6 Burn 3 | . . . . 3 Destroy 1 | . 1 . . . Blast 1 | . . . . 1 Corrupt 1 | . . . . 1 Smash 1 | . . . . 1 Melee Attacks 19 | . . . . 19 Impact 19 | . . . . 19 Slashing . | . . . . . Piercing . | . . . . . Sneak Attacks . | . . . . . Combat Hostiles . | . . . . . Follow-up Attacks . | . . . . . Damage Inflicted 3409 | 37 719 . 298 2355 Guns 1336 | 37 533 . 17 749 Cannons 451 | . . . . 451 Explosions 1125 | . 138 . 200 787 Melee 366 | . . . . 366 Ramming 5 | . . . 3 2 Kinetic 1014 | 37 533 . 17 427 Thermal 800 | . 186 . 78 536 Explosive 920 | . . . 200 720 Electromagnetic 304 | . . . . 304 Impact 366 | . . . . 366 Slashing . | . . . . . Piercing . | . . . . . Highest Corruption 11 | . 1 . 1 11 Average Corruption 7 | . 1 . 1 10 Corruption Purged . | . . . . . Corruption Blocked . | . . . . . Effects 25 | . . . 4 21 Message Errors 6 | . . . 1 5 Matter Fused 7 | . . . . 7 Energy Discharges 5 | . . . 2 3 Parts Rejected 1 | . . . . 1 Data Loss (major) 1 | . . . . 1 Misfires 2 | . . . . 2 Alerts 1 | . . . 1 . Misdirections 1 | . . . . 1 Weapon Failures 1 | . . . . 1 Overload Shots . | . . . . . Overflow Damage 315 | . 62 . 7 246 Projectiles . | . . . . . Explosions 190 | . 62 . 7 121 Melee 125 | . . . . 125 Knockbacks 3 | . . . . 3 Impact 1 | . . . . 1 Kinetic 1 | . . . . 1 Secondary 1 | . . . . 1 Self-Inflicted Damage 489 | . 112 . 91 286 Shots 13 | . 1 . 2 10 Rammed 2 | . . . 1 1 Targets Rammed 2 | . . . 1 1 Kicked . | . . . . . Crushed . | . . . . . Highest Temperature 402 | . 62 . . 402 Average Temperature 93 | . 15 . . 124 Received Heat Transfer 1293 | . 408 . 102 783 Effects 3 | . . . . 3 Shutdowns 1 | . . . . 1 Energy Bleed 1 | . . . . 1 Interference 1 | . . . . 1 Siege Activations . | . . . . . Martial Activations . | . . . . . Shielding Activations . | . . . . . Robots Disrupted . | . . . . . Combat Hostiles . | . . . . . Robots Corrupted 2 | . . . . 2 Combat Hostiles 2 | . . . . 2 Parts Fried 4 | . . . . 4 Impact Corruptions 8 | . . . . 8 Robots Melted . | . . . . . Combat Hostiles . | . . . . . Parts Melted . | . . . . . Heat Transferred 1928 | . 200 . 259 1469 Parts Sabotaged . | . . . . . Parts Stolen . | . . . . . Parts Stripped . | . . . . . Power Chain Reactions 1 | . . . . 1 Alert | -11 -10 -9 -9 -8 ------- Run | Yrd Mat Mat Min Mat Maximum Alert Level . | . . . . . Low Security (%) 100 | 100 100 100 100 100 Level 1 . | . . . . . Level 2 . | . . . . . Level 3 . | . . . . . Level 4 . | . . . . . Level 5 . | . . . . . High Security . | . . . . . Max Security . | . . . . . Peak Influence 143 | 5 82 16 77 143 Initial 11 | . . 11 . . Average 40 | . 27 7 12 62 Influence Increases 1086 | 5 305 15 102 659 Destroy 0b10 Robot/C 580 | . 180 . 60 340 Destroy 0b10 Robot/NC 65 | 5 20 . . 40 Destroy Leader 160 | . 54 . 10 96 Successful Hack 6 | . . . . 6 Disable Machine 60 | . 30 15 15 . Destroy Structure 95 | . 6 . 17 72 Lose Combat Pursuer 120 | . 15 . . 105 Influence Decreases 1082 | 5 276 44 102 655 Entered New Map 18 | . . 18 . . Time Decay 724 | 5 206 26 92 395 Lost Part 340 | . 70 . 10 260 Squads Dispatched 4 | . 3 . . 1 Investigation 1 | . . . . 1 Extermination . | . . . . . Reinforcement 3 | . 3 . . . Assault . | . . . . . Garrison . | . . . . . Intercept . | . . . . . Searches Triggered . | . . . . . Construction Impeded . | . . . . . Haulers Reinforced . | . . . . . Active Scanning Responses . | . . . . . Cargo Convoy Interrupts . | . . . . . Stealth | -11 -10 -9 -9 -8 --------- Run | Yrd Mat Mat Min Mat Distress Signals 4 | . 2 . . 2 Communications Jammed . | . . . . . Distress Signals . | . . . . . Times Spotted 49 | . 15 1 3 30 Peak Tracking Total 6 | . 6 2 3 5 Tactical Retreats 6 | . 1 . . 5 Traps | -11 -10 -9 -9 -8 ------- Run | Yrd Mat Mat Min Mat Traps Triggered 3 | . 1 . 1 1 Indirectly . | . . . . . Trap Hack Attempts . | . . . . . Triggered . | . . . . . Disarmed . | . . . . . Reprogrammed . | . . . . . Reused . | . . . . . Traps Extracted . | . . . . . Installed . | . . . . . Triggered . | . . . . . Machines | -11 -10 -9 -9 -8 ---------- Run | Yrd Mat Mat Min Mat Machines Disabled 4 | . 2 1 1 . Max in Single Turn 2 | . 2 1 1 . Machines Repaired . | . . . . . Machines Dismantled 2 | . . 1 1 . Machines Sabotaged . | . . . . . Overloaded Fab Kills . | . . . . . Hacking | -11 -10 -9 -9 -8 --------- Run | Yrd Mat Mat Min Mat Machines Accessed 8 | . 2 . 1 5 Terminals 7 | . 2 . . 5 Fabricators . | . . . . . Repair Stations . | . . . . . Recycling Units . | . . . . . Scanalyzers . | . . . . . Garrison Access . | . . . . . Total Hacks 18 | . 3 . 1 14 Successful 11 | . 2 . 1 8 Failed 7 | . 1 . . 6 Catastrophic 2 | . 1 . . 1 Database Lockouts . | . . . . . Manual 8 | . 2 . . 6 Terminals 17 | . 3 . . 14 Fabricators . | . . . . . Repair Stations . | . . . . . Recycling Units . | . . . . . Scanalyzers . | . . . . . Garrison Access . | . . . . . Terminal Hacks 11 | . 2 . 1 8 Prototype ID Bank 1 | . . . . 1 Open Door 1 | . . . 1 . Branch Access Points 1 | . 1 . . . Terminal Index 1 | . . . . 1 Alert Level 3 | . 1 . . 2 Recall Investigation 1 | . . . . 1 Zone Layout 3 | . . . . 3 Fabricator Hacks . | . . . . . Repair Station Hacks . | . . . . . Recycling Unit Hacks . | . . . . . Scanalyzer . | . . . . . Garrison Access Hacks . | . . . . . Unauthorized Hacks . | . . . . . Terminals . | . . . . . Fabricators . | . . . . . Repair Stations . | . . . . . Recycling Units . | . . . . . Scanalyzers . | . . . . . Garrison Access . | . . . . . Data Cores Recovered . | . . . . . Used . | . . . . . Hacking Detections 4 | . . . . 4 Full Trace Events 2 | . . . . 2 Feedback Events . | . . . . . Feedback Blocked . | . . . . . Robot Schematics Acquired . | . . . . . Robots Built . | . . . . . Authchips . | . . . . . Time . | . . . . . Total Robot Build Rating . | . . . . . Part Schematics Acquired . | . . . . . Parts Built . | . . . . . Authchips . | . . . . . Time . | . . . . . Total Part Build Rating . | . . . . . Part Studies Acquired . | . . . . . Parts Repaired . | . . . . . Time . | . . . . . Parts Recycled . | . . . . . Recycled Matter . | . . . . . Retrieved Matter . | . . . . . Retrieved Components . | . . . . . Parts Scanalyzed . | . . . . . Part Schematics Acquired . | . . . . . Parts Damaged . | . . . . . Bothacking | -11 -10 -9 -9 -8 ------------ Run | Yrd Mat Mat Min Mat Used RIF Installer . | . . . . . Robots Hacked . | . . . . . Non-combat . | . . . . . Combat . | . . . . . Robot Hacks Applied . | . . . . . Relay Couplers Released . | . . . . . Fabnet Peak Effective % . | . . . . . Robots Rewired . | . . . . . Allies Hacked . | . . . . . Hacks Repelled . | . . . . . Allies | -11 -10 -9 -9 -8 -------- Run | Yrd Mat Mat Min Mat Total Allies . | . . . . . Largest Group . | . . . . . Highest-Rated Group . | . . . . . Highest-Rated Ally . | . . . . . Total Orders . | . . . . . Ally Attacks . | . . . . . Total Damage . | . . . . . Kills . | . . . . . Allies Corrupted . | . . . . . Allies Melted . | . . . . . Intel | -11 -10 -9 -9 -8 ------- Run | Yrd Mat Mat Min Mat Active Infowar (turns) . | . . . . . Robot Analysis Total . | . . . . . Derelict Logs Recovered 2 | . . . 2 . Drone Launches . | . . . . . Drone Recoveries . | . . . . . Exploration | -11 -10 -9 -9 -8 ------------- Run | Yrd Mat Mat Min Mat Turns Passed 2469 | 87 621 61 496 1204 Spaces Moved 955 | 55 222 29 272 377 Core 51 | 10 . . . 41 Treads 463 | . . . 266 197 Legs 441 | 45 222 29 6 139 Wheels . | . . . . . Hover . | . . . . . Flight . | . . . . . Fastest Speed 50 | 50 120 120 120 120 Average Speed 182 | 116 188 120 159 211 Slowest Speed 550 | 150 260 120 160 550 Overloaded Moves . | . . . . . Propulsion Burnouts . | . . . . . Robots Hopped . | . . . . . Potential Cave-ins . | . . . . . Cave-ins Triggered . | . . . . . Exploration Rate (%) 34 | 4 63 5 57 41 Regions Visited 4 Branch Regions 1 Pre-discovered Areas 1 | . . . 1 . Known Exits Taken . | . . . . . Unknown Exits Taken 4 | 1 1 1 1 . Scrap Searched . | . . . . . Spaces Dug 3 | . . . . 3 Terrain Destroyed 105 | . 9 . 22 74 Melee 3 | . . . . 3 Projectile 5 | . 1 . . 4 AOE 97 | . 8 . 22 67 Terrain Rammed . | . . . . . Walls Destroyed . | . . . . . Machines Disabled . | . . . . . Actions | -11 -10 -9 -9 -8 --------- Run | Yrd Mat Mat Min Mat Total 1404 | 68 340 43 299 654 Wait 215 | . 55 . 6 154 Move 951 | 54 221 28 271 377 Hop . | . . . . . Pick Up 24 | 3 7 . 5 9 Fast Attach 26 | 7 1 3 . 15 Attach 24 | . 2 3 3 16 Detach 3 | . . 1 . 2 Swap 10 | 1 4 . 3 2 Drop 7 | . 2 2 . 3 Fire 114 | 3 48 . 7 56 Melee 19 | . . . . 19 Ram . | . . . . . Kick . | . . . . . Crush 2 | . . . 1 1 Escape Stasis . | . . . . . Rewire . | . . . . . Trap . | . . . . . Miscellaneous 9 | . . 6 3 . Route ------- -11/Scrapyard -10/Materials (discovered 3 exits: [*Mat] / *Min x2) -9/Materials -9/Mines (discovered 2 exits: *Mat x2) -8/Materials (discovered 1 exit: Fac) History --------- Turn | Location | Event 19 | -11/Scrapyard | Discovered new exit (range 16) 88 | -11/Scrapyard | Entered Materials 314 | -10/Materials | Build established: Mutant 400 | -10/Materials | Core integrity fell below 50% 451 | -10/Materials | Lost 4 parts (1p1u2w) 534 | -10/Materials | Discovered new exit (range 8) 555 | -10/Materials | Identified exit to Mines 676 | -10/Materials | Discovered new exit (range 15) 709 | -10/Materials | Entered another Materials area 709 | -9/Materials | Evolved 2 slots: Propulsion x1, Weapon x1 744 | -9/Materials | Discovered new exit (range 14) 770 | -9/Materials | Entered Mines 874 | -9/Mines | Learned location of Recycling (-7) 968 | -9/Mines | Met a Derelict who couldn't figure out how to use a Trap Extractor 992 | -9/Mines | Lost 5 parts (1n4w) 1229 | -9/Mines | Discovered new exit (range 6) 1235 | -9/Mines | Discovered new exit (range 16) 1266 | -9/Mines | Entered Materials 1266 | -8/Materials | Evolved 2 slots: Utility x2 1267 | -8/Materials | Identified exit to Factory 1900 | -8/Materials | Build established: Gunner 1946 | -8/Materials | System corruption reached 10% 1976 | -8/Materials | Lost 4 parts (1n3w) 2008 | -8/Materials | Core integrity fell below 50% 2039 | -8/Materials | Lost 7 parts (1p2n1u3w) 2308 | -8/Materials | Core integrity fell below 20% 2355 | -8/Materials | Lost 3 parts (1p1n1u) 2422 | -8/Materials | Build established: Hacker-Mutant 2470 | -8/Materials | Destroyed by Y-45 Defender with Heavy Assault Rifle Last Messages --------------- U-05 Engineer builds a Wall. U-05 Engineer lays Concrete. U-05 Engineer builds a Wall. System corrupted: Matter fused (-10). U-05 Engineer builds a Wall. Acquired Lgt. EM Pulse Cannon. U-05 Engineer builds a Wall. System corrupted: Energy discharge (-24). Connecting with Scanalyzer... System corrupted: Matter fused (-6). Critical hit (Burn: +37). Lgt. Assault Rifle destroyed. Y-45 Defender misfires. Electrolysis Chamber disabled. Lgt. EM Pulse Cannon destroyed. Electrolysis Chamber disabled. System corrupted: Matter fused (-7). Y-45 Defender misfires. Hvy. Mace destroyed. Critical hit (Burn: +37). Map ----- +----------------------------------------------------+ | | | | | | | | | | | | | | | | | | | | | | | ?????????????????????????????????????????????????? | | ?????????????????????????????????????????????????? | | ?????????????????????????????????????????????????? | | ?????????????????????????????????????????????????? | | ?????????????????????????????????????????????????? | | ?????????????????????????????????????????????????? | | ?????????????????????????????????????????????????? | | ?????????????????????????????????????????????????? | | ?????????????????????????????????????????????????? | | ?????????????????????????????????????????????????? | | ?????????????????????????????????????????????????? | | ??????????????????????##?????????????????????????? | | ????????????????????### ####?????????????????????? | | ????????????????????# Y #?????????????????????? | | ????????????????????# """@ #?????????????????????? | | ????????????????????# "" #?????????????????????? | | ????????????????????# "" ]#?????????????????????? | | ????????????????????# #?????????????????????? | | ????????????#######?# " " #????#????????????????? | | ??????????###"####### """ #?? ### +??????????? | | ??????????# #" # """ # #??????????? | | ??????????# " # + #??????????? | | ??????????## " # "S # #??????????? | | ??????????# " # """ !#??##### #??????????? | | ??????????# " # "" #?????????????????????? | | ??????????# " # #?????????????????????? | | #################+###########????????????????????? | | ?????????????????? | | ?????????????????? | | " ?????????????????? | | " #####################+### #?????????????????? | | " #????????????????????? ??? ??????????????????? | | #??????###?###????????? #?????????????????????? | | ########### ##???????????????????????????????? | | #???????????????????????????????? | | #####???????????????????????????? | | + # ???????????????????? | | ######+########+###### ! # ???????????????????? | | ## ## ## # ???????????????????? | +----------------------------------------------------+ Best States ------------- Heat Dissipation 45 Energy Generation 14 Energy Capacity 250 Matter Stores 300 Matter Capacity 300 Sight Range 16 Terrain Scan Density 10 Armor Coverage 150 Evasion (%) 55 Targeting Accuracy 6 Recoil Reduction 3 Offensive Hacking 30 Item Schematics ----------------- None Robot Schematics ------------------ None Fabricated ------------ Nothing Repaired ---------- Nothing Studied --------- None Alien Tech Used ----------------- None Achievements -------------- None Challenges ------------ None Game ------ Seed OpticalGrenadeScythe Manual? 0 Play Time 00:19:43 Cumulative 46.7 hours Start 2025.11.05 @ 20:21:19 End 2025.11.05 @ 20:40:12 Sessions 1 Manual Loads 0 Difficulty Rogue Special Mode None Game No. 62 Rogue 62 Adventurer 0 Explorer 0 Win Type - Total 0 Types 0/0/0/0/0/0/0/0/0/0 Lore% 31 Gallery% 37 Achievement% 27 Wizard Run 0 Options --------- Layout 2 ASCII 0 Keyboard 0 Movement Mouse Keybinds 0 Fullscreen 1 Font 24/Smallcaps Map View 50x44 Zoom Use 0% Tactical HUD 0 Map Filters NONE Filters NONE Steam 1 RUN: 1ac95567-5e19-4ebd-9e50-06047f062cba